Cogmind - Beta 9.5 @@@ ROGUE MODE // 2020.04.09 @ 14:53:21 // Winter2019/RPGLIKE Player: IAMCRAIG Result: Destroyed by Y-45 Defender with Heavy Assault Rifle Performance ------------- Evolutions (2) 1000 Regions Visited (7) 1400 Robots Destroyed (154) 770 Value Destroyed (3490) 3490 Prototype IDs (7) 140 Alien Tech Used (0) 0 Bonus (302) 302 TOTAL SCORE: 7102 Bonus ------- High Alert Combat Kills 652 Follower Combat Kills 165 Friendly Fire -515 Cogmind --------- Core Integrity 0/900 Matter 276/300 Energy 460/460 System Corruption 0% Temperature Cool (9) Movement Treading (190) Ox1 Location -8/Materials Parts ------- > --- POWER (2) -------- Cooled Ion Engine Cooled Ion Engine > --- PROPULSION (3) --- Armored Treads Armored Treads Armored Treads > --- UTILITY (8) ------ Power Amplifier Improved Heat Sink Cooling System Experimental Sensor Array Advanced Signal Interpreter Improved Targeting Computer Hardened Medium Armor Plating Insulated Plating > --- WEAPON (5) ------- Improved EM Shotgun Shock Rifle Bore Cannon Bore Cannon Shock Bomb Launcher > --- INVENTORY (2) ---- Combat Airjet High-capacity Matter Pod (200) Peak State ------------ > --- POWER ------------ Cooled Ion Engine Cooled Ion Engine > --- PROPULSION ------- Armored Treads Armored Treads Armored Treads > --- UTILITY ---------- Power Amplifier Improved Heat Sink Cooling System Experimental Sensor Array Advanced Signal Interpreter Improved Targeting Computer Hardened Medium Armor Plating Insulated Plating > --- WEAPON ----------- Improved EM Shotgun Shock Rifle Bore Cannon Bore Cannon Shock Bomb Launcher > --- INVENTORY -------- Combat Airjet High-capacity Matter Pod [Rating: 61] Favorites ----------- Power Cooled Ion Engine Engine Cooled Ion Engine Propulsion Armored Treads Treads Armored Treads Leg Carbon-fiber Leg Wheel Compact Wheel Utility Improved Heat Sink Device Improved Heat Sink Storage High-capacity Matter Pod Processor Targeting Computer Protection Hardened Medium Armor Plating Weapon Bore Cannon Energy Gun EM Shotgun Energy Cannon Beam Cannon Ballistic Gun Improved Assault Rifle Ballistic Cannon Bore Cannon Launcher Shock Bomb Launcher Build | -11 -10 -10 -9 -9 -9 -8 -8 ------- Run | Scr Mat Min Mat Min Exi Min Mat Slots Evolved 14 | 3 3 1 5 1 . . 1 Power 1 | . . . 1 . . . . Propulsion 2 | 1 . . 1 . . . . Utility 7 | 1 2 1 2 1 . . . Weapon 4 | 1 1 . 1 . . . 1 Parts Attached 80 | 5 15 16 34 2 . 2 6 Power 4 | 1 . 1 2 . . . . Engine 4 | 1 . 1 2 . . . . Core . | . . . . . . . . Reactor . | . . . . . . . . Propulsion 20 | 2 2 7 9 . . . . Treads 17 | 2 1 5 9 . . . . Leg 2 | . . 2 . . . . . Wheel 1 | . 1 . . . . . . Hover . | . . . . . . . . Flight . | . . . . . . . . Utility 33 | . 8 7 11 1 . 2 4 Device 10 | . 2 3 2 1 . 1 1 Storage 1 | . 1 . . . . . . Processor 5 | . . 2 2 . . 1 . Hackware . | . . . . . . . . Protection 17 | . 5 2 7 . . . 3 Artifact . | . . . . . . . . Weapon 23 | 2 5 1 12 1 . . 2 Energy Gun 10 | 1 1 . 7 . . . 1 Energy Cannon 4 | . 2 . 2 . . . . Ballistic Gun 2 | 1 . . 1 . . . . Ballistic Cannon 5 | . 1 1 2 1 . . . Launcher 2 | . 1 . . . . . 1 Special Weapon . | . . . . . . . . Impact Weapon . | . . . . . . . . Slashing Weapon . | . . . . . . . . Piercing Weapon . | . . . . . . . . Special Melee Weapon . | . . . . . . . . Unidentified Prototypes 5 | . . 1 4 . . . . Parts Lost . | . . . . . . . . Power . | . . . . . . . . Propulsion . | . . . . . . . . Utility . | . . . . . . . . Weapon . | . . . . . . . . Highest Loss Streak . | . . . . . . . . Average Slot Usage (%) 99 | . 97 99 99 100 100 100 100 Engine 11 | . 11 9 12 11 11 11 11 Treads 17 | . 21 14 16 17 17 17 16 Device 19 | . 15 21 16 23 23 23 22 Processor 10 | . . 11 15 11 11 11 11 Protection 11 | . 13 10 12 11 11 11 11 Energy Gun 10 | . 10 9 9 11 11 11 11 Energy Cannon 5 | . 12 9 5 1 . . . Ballistic Cannon 7 | . 3 9 6 9 11 11 11 Naked Turns . | . . . . . . . . Heaviest Build 62 | 6 21 28 54 60 60 60 62 Greatest Support 63 | 40 40 40 63 60 60 60 60 Greatest Overweight (x) 1 | . 1 1 1 . . . 1 Average Overweight (x) . | . . . . . . . . Largest Inventory Capacity 2 | . 1 2 2 2 2 2 2 Average Capacity 1 | . . 1 2 2 2 2 2 Most Carried 2 | . 1 2 2 2 2 2 2 Average Carried 1 | . . 1 1 1 2 2 2 Final Capacity 2 | . 1 2 2 2 2 2 2 Final Carried 2 | . 1 2 2 2 2 2 2 Class Distribution -------------------- 35% | Mutant 33% | Scavenger-Mutant 11% | Tank 8% | Scavenger-Gunner 7% | Gunner 3% | Skirmisher Dominant Class ---------------- Mutant | -10/Materials Scavenger-Gunner | -10/Mines Mutant | -9/Materials Scavenger-Mutant | -9/Mines Scavenger-Mutant | -9/Exiles Scavenger-Mutant | -8/Mines Mutant | -8/Materials Resources | -11 -10 -10 -9 -9 -9 -8 -8 ----------- Run | Scr Mat Min Mat Min Exi Min Mat Matter Collected 3164 | 241 385 449 1573 215 . 114 187 Remotely . | . . . . . . . . Salvage Created 3620 | 50 355 243 2378 221 . 103 270 Parts 285 | 2 43 33 170 18 . 4 15 Haulers Intercepted 8 | . 2 . 6 . . . . Recyclers Shooed 5 | . 1 . 3 . . . 1 Parts Field Recycled . | . . . . . . . . Retrieved Matter . | . . . . . . . . Parts Self-Destructed . | . . . . . . . . Prevented . | . . . . . . . . Kills | -11 -10 -10 -9 -9 -9 -8 -8 ------- Run | Scr Mat Min Mat Min Exi Min Mat Combat Hostiles Destroyed 111 | . 13 10 61 20 . 1 6 Melee 1 | . . . . 1 . . . Guns 30 | . 8 4 13 5 . . . Cannons 68 | . 5 6 44 7 . 1 5 AOE 12 | . . . 4 7 . . 1 Classes Destroyed 15 | 1 5 2 6 1 . . . Worker 9 | . 1 1 5 1 . 1 . Builder 3 | . . 2 1 . . . . Tunneler 4 | . . 4 . . . . . Hauler 8 | . 2 . 6 . . . . Recycler 6 | 1 1 . 4 . . . . Mechanic 1 | . . . 1 . . . . Operator 2 | . . . 1 . . . 1 Watcher 8 | . 3 . 5 . . . . Swarmer 49 | . 9 6 20 12 . . 2 Grunt 32 | . 4 4 23 1 . . . Brawler 6 | . . . 5 . . 1 . Duelist 1 | . . . 1 . . . . Protector 2 | . . . 2 . . . . Sentry 14 | . . . 10 . . . 4 Assembled 7 | . . . . 7 . . . Thug 2 | . . 2 . . . . . Best Kill Streak 10 | 1 3 4 10 4 . 1 3 Combat Bots Only 9 | . 3 3 9 4 . 1 3 Max Kills in Single Turn 4 | 1 2 1 3 4 . 1 1 Gunslinging . | . . . . . . . . Exploded 4 | . . . 2 4 . . 1 Melee 1 | . . . . 1 . . . Uniques/NPCs Destroyed . | . . . . . . . . Combat | -11 -10 -10 -9 -9 -9 -8 -8 -------- Run | Scr Mat Min Mat Min Exi Min Mat Damage Taken 4386 | . 284 339 2119 986 . 49 609 Core 2991 | . 214 243 1363 689 . 26 456 Absorbed by Shields . | . . . . . . . . Redirected to Core 2567 | . 141 183 1226 624 . 26 367 Core Remaining (%) 83 | 100 . 100 . . . 49 . Volleys Fired 339 | 2 57 60 169 30 . 9 12 Largest 4 | 2 3 3 4 4 . 2 3 Hottest 215 | 70 185 182 215 215 . 114 164 Shots Fired 690 | 4 119 110 343 76 . 15 23 Gun 208 | 4 48 26 93 36 . . 1 Cannon 477 | . 66 84 250 40 . 15 22 Launcher 5 | . 5 . . . . . . Special . | . . . . . . . . Kinetic 328 | 2 4 55 201 29 . 15 22 Thermal 266 | 2 110 55 88 11 . . . Explosive 5 | . 5 . . . . . . Electromagnetic 91 | . . . 54 36 . . 1 Robot Hit Streak 25 | 2 11 14 25 14 . 10 12 Robot Miss Streak 9 | 1 9 5 6 3 . . 1 Penetration Max 2 | . . 1 2 . . . 1 Secondary Targets 3 | . . . 2 1 . . . Max Gunslinging Chain 1 | . . . 1 1 . . . Shots Hit Robots 406 | 2 49 65 215 55 . 5 15 Core Hits 253 | 2 49 40 116 35 . 2 9 Critical Hits 104 | . . 12 72 7 . 5 8 Critical Kills 38 | . . 4 28 2 . 1 3 Critical Parts Destroyed 60 | . . 8 38 5 . 4 5 Melee Attacks . | . . . . . . . . Impact . | . . . . . . . . Slashing . | . . . . . . . . Piercing . | . . . . . . . . Sneak Attacks . | . . . . . . . . Combat Hostiles . | . . . . . . . . Follow-up Attacks . | . . . . . . . . Damage Inflicted 8595 | 35 621 975 4829 1458 . 225 452 Guns 1929 | 35 279 249 935 416 . . 15 Cannons 5188 | . 245 693 3339 407 . 133 371 Explosions 1138 | . 84 . 395 608 . . 51 Melee . | . . . . . . . . Ramming 340 | . 13 33 160 27 . 92 15 Kinetic 3742 | 10 18 464 2442 304 . 133 371 Thermal 3295 | 25 506 478 1575 711 . . . Explosive 135 | . 84 . . . . . 51 Electromagnetic 1083 | . . . 652 416 . . 15 Impact . | . . . . . . . . Slashing . | . . . . . . . . Piercing . | . . . . . . . . Highest Corruption . | . . . . . . . . Average Corruption . | . . . . . . . . Corruption Purged . | . . . . . . . . Overload Shots . | . . . . . . . . Overflow Damage 145 | . 28 . 70 47 . . . Projectiles 66 | . 16 . 38 12 . . . Explosions 74 | . 12 . 27 35 . . . Melee 5 | . . . 5 . . . . Knockbacks 30 | . . 5 19 5 . . 1 Impact 2 | . . . 2 . . . . Kinetic 26 | . . 4 17 4 . . 1 Secondary 2 | . . 1 . 1 . . . Self-Inflicted Damage 330 | . 36 . 207 . . . 87 Shots 8 | . 1 . 6 . . . 1 Rammed 54 | . 5 6 25 3 . 13 2 Targets Rammed 62 | . 5 10 28 4 . 13 2 Kicked . | . . . . . . . . Crushed 8 | . . 4 3 1 . . . Highest Temperature 378 | 60 321 362 378 371 . 4 12 Average Temperature 92 | 30 77 122 91 98 . 4 8 Received Heat Transfer 924 | . 12 30 774 36 . 18 54 Effects 8 | . . 1 6 1 . . . Shutdowns 3 | . . 1 1 1 . . . Interference 5 | . . . 5 . . . . Siege Activations . | . . . . . . . . Robots Corrupted . | . . . . . . . . Combat Hostiles . | . . . . . . . . Parts Fried 3 | . . . 1 2 . . . Impact Corruptions 2 | . . . 2 . . . . Robots Melted . | . . . . . . . . Combat Hostiles . | . . . . . . . . Parts Melted 5 | 1 . 1 3 . . . . Heat Transferred 5423 | 74 836 786 2842 885 . . . Parts Sabotaged . | . . . . . . . . Parts Stolen . | . . . . . . . . Parts Stripped . | . . . . . . . . Power Chain Reactions 7 | . . . 7 . . . . Missiles Intercepted . | . . . . . . . . Alert | -11 -10 -10 -9 -9 -9 -8 -8 ------- Run | Scr Mat Min Mat Min Exi Min Mat Peak Influence 1184 | 5 426 273 1184 760 . 183 209 Average Influence 385 | 1 255 99 716 586 . 49 51 Maximum Alert Level 4 | . 2 1 4 3 . . 1 Low Security (%) 42 | 100 33 84 10 . . 100 96 Level 1 20 | . 63 15 14 16 . . 3 Level 2 15 | . 2 . 21 59 . . . Level 3 16 | . . . 40 24 . . . Level 4 4 | . . . 13 . . . . Level 5 . | . . . . . . . . High Security . | . . . . . . . . Max Security . | . . . . . . . . Squads Dispatched 16 | . 3 . 12 1 . . . Investigation 8 | . 3 . 4 1 . . . Extermination . | . . . . . . . . Reinforcement 4 | . . . 4 . . . . Assault 4 | . . . 4 . . . . Garrison . | . . . . . . . . Intercept . | . . . . . . . . Construction Impeded . | . . . . . . . . Haulers Reinforced . | . . . . . . . . Stealth | -11 -10 -10 -9 -9 -9 -8 -8 --------- Run | Scr Mat Min Mat Min Exi Min Mat Distress Signals 3 | . . . 3 . . . . Communications Jammed . | . . . . . . . . Distress Signals . | . . . . . . . . Times Spotted 201 | . 25 13 105 41 . 6 11 Peak Tracking Total 19 | . 5 3 6 19 . 3 4 Tactical Retreats 22 | . 3 1 8 6 . . 4 Traps | -11 -10 -10 -9 -9 -9 -8 -8 ------- Run | Scr Mat Min Mat Min Exi Min Mat Traps Triggered 5 | . 1 . 4 . . . . Indirectly . | . . . . . . . . Trap Hack Attempts . | . . . . . . . . Triggered . | . . . . . . . . Disarmed . | . . . . . . . . Reprogrammed . | . . . . . . . . Reused . | . . . . . . . . Traps Extracted . | . . . . . . . . Installed . | . . . . . . . . Triggered . | . . . . . . . . Machines | -11 -10 -10 -9 -9 -9 -8 -8 ---------- Run | Scr Mat Min Mat Min Exi Min Mat Machines Disabled 64 | . 24 5 12 14 . 7 2 Max in Single Turn 10 | . 5 2 2 10 . 2 2 Machines Sabotaged . | . . . . . . . . Garrisons Compromised . | . . . . . . . . Overloaded Fab Kills . | . . . . . . . . Fab Network Shutdowns . | . . . . . . . . Hacking | -11 -10 -10 -9 -9 -9 -8 -8 --------- Run | Scr Mat Min Mat Min Exi Min Mat Machines Accessed 20 | . 9 . 8 1 . . 2 Terminals 14 | . 7 . 4 1 . . 2 Fabricators . | . . . . . . . . Repair Stations . | . . . . . . . . Recycling Units 4 | . 2 . 2 . . . . Scanalyzers 2 | . . . 2 . . . . Garrison Access . | . . . . . . . . Total Hacks 73 | . 34 . 31 2 . . 6 Successful 47 | . 21 . 20 2 . . 4 Failed 26 | . 13 . 11 . . . 2 Catastrophic 1 | . . . 1 . . . . Database Lockouts . | . . . . . . . . Manual 38 | . 18 . 11 4 . . 5 Terminals 41 | . 23 . 10 2 . . 6 Fabricators . | . . . . . . . . Repair Stations . | . . . . . . . . Recycling Units 23 | . 11 . 12 . . . . Scanalyzers 9 | . . . 9 . . . . Garrison Access . | . . . . . . . . Terminal Hacks 7 | . 5 . 1 1 . . . Robot Analysis 3 | . 2 . . 1 . . . Prototype ID Bank 1 | . 1 . . . . . . Unreport Threat 1 | . . . 1 . . . . Locate Traps 2 | . 2 . . . . . . Fabricator Hacks . | . . . . . . . . Repair Station Hacks . | . . . . . . . . Recycling Unit Hacks 8 | . 4 . 4 . . . . Report Inventory 4 | . 2 . 2 . . . . Retrieve Components 4 | . 2 . 2 . . . . Scanalyzer 7 | . . . 7 . . . . Insert Component 4 | . . . 4 . . . . Analyze 3 | . . . 3 . . . . Garrison Access Hacks . | . . . . . . . . Unauthorized Hacks 57 | . 28 . 18 2 . . 9 Terminals 16 | . 8 . 3 1 . . 4 Track 1 | . . . . . . . 1 Assimilate 1 | . . . . . . . 1 Botnet 13 | . 7 . 3 1 . . 2 Disrupt 1 | . 1 . . . . . . Fabricators . | . . . . . . . . Repair Stations . | . . . . . . . . Recycling Units 8 | . 4 . 4 . . . . Monitor 2 | . 1 . 1 . . . . Reject 3 | . 1 . 2 . . . . Recyclers 1 | . 1 . . . . . . Mask 2 | . 1 . 1 . . . . Scanalyzers . | . . . . . . . . Garrison Access . | . . . . . . . . Data Cores Recovered 1 | . . . . . . . 1 Used . | . . . . . . . . Hacking Detections 20 | . 9 . 8 1 . . 2 Full Trace Events 7 | . 3 . 3 1 . . . Feedback Events . | . . . . . . . . Feedback Blocked . | . . . . . . . . Robot Schematics Acquired . | . . . . . . . . Robots Built . | . . . . . . . . Matter . | . . . . . . . . Time . | . . . . . . . . Total Robot Build Rating . | . . . . . . . . Part Schematics Acquired 3 | . . . 3 . . . . Parts Built . | . . . . . . . . Matter . | . . . . . . . . Time . | . . . . . . . . Total Part Build Rating . | . . . . . . . . Parts Repaired . | . . . . . . . . Time . | . . . . . . . . Parts Recycled . | . . . . . . . . Recycled Matter . | . . . . . . . . Retrieved Matter . | . . . . . . . . Retrieved Components 19 | . 9 . 10 . . . . Parts Scanalyzed 3 | . . . 3 . . . . Part Schematics Acquired 3 | . . . 3 . . . . Parts Damaged . | . . . . . . . . Bothacking | -11 -10 -10 -9 -9 -9 -8 -8 ------------ Run | Scr Mat Min Mat Min Exi Min Mat Used RIF Installer . | . . . . . . . . Robots Hacked . | . . . . . . . . Non-combat . | . . . . . . . . Combat . | . . . . . . . . Robot Hacks Applied . | . . . . . . . . Relay Couplers Released . | . . . . . . . . Robots Rewired . | . . . . . . . . Allies Hacked . | . . . . . . . . Hacks Repelled . | . . . . . . . . Allies | -11 -10 -10 -9 -9 -9 -8 -8 -------- Run | Scr Mat Min Mat Min Exi Min Mat Total Allies 4 | . . . . 4 . . . Largest Group 4 | . . . . 4 4 3 1 Highest-Rated Group 71 | . . . . 71 71 40 16 Highest-Rated Ally 31 | . . . . 31 31 16 16 Total Orders . | . . . . . . . . Ally Attacks 39 | . . . . 21 . 17 1 Total Damage 450 | . . . . 229 . 221 . Kills 10 | . . . . 4 . 6 . Allies Corrupted . | . . . . . . . . Allies Melted . | . . . . . . . . Intel | -11 -10 -10 -9 -9 -9 -8 -8 ------- Run | Scr Mat Min Mat Min Exi Min Mat Robot Analysis Total 3 | . 2 . . 1 . . . Derelict Logs Recovered 2 | . . 1 . 1 . . . Drone Launches . | . . . . . . . . Drone Recoveries . | . . . . . . . . Exploration | -11 -10 -10 -9 -9 -9 -8 -8 ------------- Run | Scr Mat Min Mat Min Exi Min Mat Turns Passed 10290 | 79 1597 1643 3197 1308 640 1103 723 Spaces Moved 5383 | 47 933 902 1465 692 376 615 353 Core 7 | 7 . . . . . . . Treads 4893 | 40 687 665 1465 692 376 615 353 Legs 112 | . . 112 . . . . . Wheels 371 | . 246 125 . . . . . Hover . | . . . . . . . . Flight . | . . . . . . . . Fastest Speed 50 | 50 110 110 160 170 170 170 170 Average Speed 164 | 143 146 154 171 170 170 170 178 Slowest Speed 190 | 160 160 180 190 170 170 170 190 Overloaded Moves . | . . . . . . . . Propulsion Burnouts . | . . . . . . . . Robots Hopped . | . . . . . . . . Cave-ins Triggered 1 | . . . . . . . 1 Exploration Rate (%) 72 | 3 99 99 96 99 64 99 24 Regions Visited 7 Branch Regions 4 Pre-discovered Areas 1 | . . 1 . . . . . Known Exits Taken 1 | . . . . . . 1 . Unknown Exits Taken 6 | 1 1 1 1 1 1 . . Scrap Searched 6 | . . 3 . 2 . 1 . Spaces Dug 16 | . 11 . 4 . . . 1 Terrain Destroyed 351 | . 55 38 118 77 . 3 60 Melee . | . . . . . . . . Projectile 107 | . . 19 61 14 . 3 10 AOE 244 | . 55 19 57 63 . . 50 Actions | -11 -10 -10 -9 -9 -9 -8 -8 --------- Run | Scr Mat Min Mat Min Exi Min Mat Total 6200 | 53 1049 1057 1832 761 377 649 422 Wait 139 | . 17 32 25 19 2 . 44 Move 5376 | 46 932 901 1464 691 375 614 353 Hop . | . . . . . . . . Pick Up 7 | . 1 2 3 1 . . . Fast Attach 49 | 5 12 8 18 1 . 1 4 Attach 5 | . . . 4 1 . . . Detach 7 | . 1 1 3 1 . 1 . Swap 26 | . 3 8 12 . . 1 2 Drop 53 | . 10 15 21 1 . 1 5 Fire 339 | 2 57 60 169 30 . 9 12 Melee . | . . . . . . . . Ram . | . . . . . . . . Kick . | . . . . . . . . Crush 62 | . 5 10 28 4 . 13 2 Escape Stasis . | . . . . . . . . Rewire . | . . . . . . . . Trap . | . . . . . . . . Miscellaneous 137 | . 11 20 85 12 . 9 . Route ------- -11/Scrapyard -10/Materials (discovered 5 exits: *Mat x3 / [*Min x2]) -10/Mines (discovered 2 exits: *Mat x2) -9/Materials (discovered 5 exits: *Mat x3 / *Min x2) -9/Mines (discovered 3 exits: *Mat x2 / [*Exi]) -9/Exiles -8/Mines (discovered 2 exits: *Mat x2) -8/Materials (discovered 1 exit: [*Sto]) History --------- Turn | Location | Event 3 | -11/Scrapyard | Discovered new exit (range 15) 10 | -11/Scrapyard | Upgraded with Propulsion slot (x1) 10 | -11/Scrapyard | Upgraded with Utility slot (x1) 10 | -11/Scrapyard | Upgraded with Weapon slot (x1) 80 | -11/Scrapyard | Entered Materials 303 | -10/Materials | Build established: Mutant 443 | -10/Materials | Upgraded with Utility slot (x1) 485 | -10/Materials | Discovered new exit (range 12) 656 | -10/Materials | Reached level 2 834 | -10/Materials | Discovered new exit (range 4) 909 | -10/Materials | Upgraded with Utility slot (x1) 909 | -10/Materials | Upgraded with Weapon slot (x1) 1114 | -10/Materials | Reached level 3 1134 | -10/Materials | Discovered new exit (range 16) 1208 | -10/Materials | Build established: Tank 1348 | -10/Materials | Discovered new exit (range 6) 1565 | -10/Materials | Discovered new exit (range 16) 1677 | -10/Materials | Entered Mines 1678 | -10/Mines | Learned location of Storage (-8) 1681 | -10/Mines | Met a Derelict bent on vengeance 1826 | -10/Mines | Found a damaged Exp. Sensor Array with a note attached 1831 | -10/Mines | Found Prototype Device 1831 | -10/Mines | Identified Exp. Sensor Array 1908 | -10/Mines | Reached level 4 2000 | -10/Mines | Discovered new exit (range 7) 2015 | -10/Mines | A weapon hastily lodged in a ceiling crevice suddenly fell to the ground 2093 | -10/Mines | Discovered new exit (range 11) 2241 | -10/Mines | Learned Materials garrison access intel 2259 | -10/Mines | Joined a pair of Derelicts in attacking an 0b10 outpost 2273 | -10/Mines | Upgraded with Utility slot (x1) 2575 | -10/Mines | Build established: Scavenger-Gunner 2978 | -10/Mines | Excavation squad dispatched 2978 | -10/Mines | A large section of the Mines collapsed 3225 | -10/Mines | Build established: Scavenger-Mutant 3320 | -10/Mines | Entered Materials 3322 | -9/Materials | Reached level 5 3376 | -9/Materials | Upgraded with Utility slot (x1) 3612 | -9/Materials | Reached level 6 3663 | -9/Materials | Upgraded with Power slot (x1) 3714 | -9/Materials | Destroyed 9 combat bots 3810 | -9/Materials | Reached level 7 3962 | -9/Materials | Discovered new exit (range 13) 3963 | -9/Materials | Build established: Gunner 4178 | -9/Materials | Upgraded with Utility slot (x1) 4576 | -9/Materials | Reached level 8 4615 | -9/Materials | Destroyed 7 combat bots 4618 | -9/Materials | Build established: Mutant 4630 | -9/Materials | Upgraded with Propulsion slot (x1) 4711 | -9/Materials | Discovered new exit (range 7) 4920 | -9/Materials | First assault squad dispatched 4984 | -9/Materials | Reached level 9 5001 | -9/Materials | Upgraded with Weapon slot (x1) 5058 | -9/Materials | Discovered new exit (range 9) 5289 | -9/Materials | Discovered new exit (range 15) 6174 | -9/Materials | Discovered new exit (range 16) 6371 | -9/Materials | Reached level 10 6517 | -9/Materials | Entered Mines 6517 | -9/Mines | Upgraded with Utility slot (x1) 6589 | -9/Mines | Discovered new exit (range 15) 6704 | -9/Mines | Assembled infested the area 6709 | -9/Mines | Assisted by a Guerilla fighting off Assembled 6727 | -9/Mines | Core integrity fell below 50% 6741 | -9/Mines | Core integrity fell below 20% 7009 | -9/Mines | Learned Materials stockpile data 7202 | -9/Mines | Assisted by bots powering up and referring to "LRC-V3" 7357 | -9/Mines | Build established: Scavenger-Mutant 7659 | -9/Mines | Discovered new exit (range 3) 7663 | -9/Mines | Received a Mining Laser from a helpful Derelict 7815 | -9/Mines | Deemed a non-threat by the Exiles lab entrance 7815 | -9/Mines | Discovered new exit (range 5) 7825 | -9/Mines | Entered Exiles 7825 | -9/Exiles | Accompanied by 4 allies 7866 | -9/Exiles | Met 8R-AWN 7897 | -9/Exiles | Met EX-HEX 7944 | -9/Exiles | Met EX-BIN 8184 | -9/Exiles | Met EX-DEC 8444 | -9/Exiles | Discovered new exit (range 12) 8465 | -9/Exiles | Entered Mines 8465 | -8/Mines | Accompanied by 3 allies 8467 | -8/Mines | Reached level 11 8702 | -8/Mines | Discovered new exit (range 11) 9080 | -8/Mines | Discovered new exit (range 6) 9087 | -8/Mines | Identified exit to Materials 9568 | -8/Mines | Entered Materials 9568 | -8/Materials | Accompanied by 1 ally 9569 | -8/Materials | Core integrity fell below 50% 9570 | -8/Materials | Loaded intel: 1 garrison access location 9570 | -8/Materials | Reached level 12 9954 | -8/Materials | Upgraded with Weapon slot (x1) 10170 | -8/Materials | Crushed by falling debris 10170 | -8/Materials | Core integrity fell below 20% 10290 | -8/Materials | Discovered new exit (range 15) 10291 | -8/Materials | Destroyed by Y-45 Defender with Heavy Assault Rifle Last Messages --------------- 10185_ K-01 Serf collects debris. 10231_ HV Slug penetrates Wall. 10238_ K-01 Serf collects debris. 10246_ U-05 Engineer builds a Wall. 10247_ Connecting with Terminal... >>Trojan(Botnet) Trojan loaded successfully. Testing... Terminal linked with 1 system. Awaiting botnet instructions. >>Trojan(Assimilate) Trojan loaded successfully. Testing... System interface override in place. >>Trojan(Track) Trojan loaded successfully. Testing... Tracking enabled and active. 10272_ Dropped Hrd. Medium Armor Plating. 10290_ EXIT=FOUND Map ----- +----------------------------------------------------+ | ????????????????????????????????????? | | ????????????????????????????????????? | | ????????????????????????????????????? | | ????????????????????????????????????? | | ????????????????????????????????????? | | ?????????????????????????ag???k?????? | | ????????????????????????????????????? | | ????????????????????????????????????? | | ????????????????????????????????????? | | ????????????????????????????????????? | | ?????????????????????????Y??????????? | | ????????????????????????? ??????????? | | ????????????????????????? ??????????? | | ????????????????????????? ??????????? | | ????????????a???????????# ??????????? | | ????????????????????????# ###???????? | | ???????????????????????? #???????? | | ??????????????????g????? +???????? | | ?????k??????r???g???l??k #???????? | | ????????????????????????# #???????? | | ?????????????????Y??????# #???????? | | ????????????????????????# #???????? | | ????????????????????????# #???????? | | ??????w?????????????????# #???????? | | ????????????????????????# ######### | | ????????????????????????#@ # # | | ????????????????????????# # # | | ????????????????????????# # = # | | ????????????????????????# # """# | | ????????????????????????# + [ """# | | ?????????????####???????#u # """# | | ????????????##%%#???????# #! # | | ????????????#% #????#?## ###+##### | | ????????????#% k######## ## #???? | | ????????????#% ## #???? | | ????????????#% ## #???? | | ????????????##%% u ## #???? | | ?????????????#######/### ## #???? | | ?????????????????# k ##### #???? | | ?????????????????# #???# #???? | | ????#######??????# k #???# #???? | | ????# #??????# """ #???# #???? | | ????# #??????# """ ###?# T#??? | | ????# #??????# """ #?# ##??? | | ????# ########% ###?# #???? | | ????###+### T +* #??# #???? | | ??????# #?# =/#![!! # #?# #???? | | ??????# #?# ][[# [!! ###?# #???? | | ??????# #?# ][[# [! #???# #???? | | ??????#s###!r ][ # #???# #???? | +----------------------------------------------------+ Best States ------------- Heat Dissipation 67 Energy Generation 26 Energy Capacity 460 Matter Stores 500 Matter Capacity 500 Sight Range 16 Robot Scan Range 30 Terrain Scan Range 16 Terrain Scan Density 10 ECM Strength 1 Power Amplification 20 Armor Coverage 450 Resistance: KI 10 Resistance: TH 10 Resistance: EM 15 Propulsion Shielding 33 Evasion (%) 40 Targeting Accuracy 15 Recoil Reduction 3 Item Schematics ----------------- Hcp. Matter Pod | -9/Materials | Scanalyzed Bore Cannon | -9/Materials | Scanalyzed Adv. Beam Cannon | -9/Materials | Scanalyzed Robot Schematics ------------------ None Fabricated ------------ Nothing Alien Tech Used ----------------- None Achievements -------------- None Challenges ------------ None RPGLIKE | -11 -10 -10 -9 -9 -9 -8 -8 --------- Run | Scr Mat Min Mat Min Exi Min Mat Levels Raised 11 | . 2 1 6 . . 1 1 XP Earned 20804 | 3000 3624 1975 7947 1220 67 1437 1534 XP Spent 19200 | 1500 2950 2800 6600 2600 50 1300 1400 Upgrades 29 | 3 4 4 7 7 1 2 1 Power Slot 1 | . . . 1 . . . . Propulsion Slot 2 | 1 . . 1 . . . . Utility Slot 7 | 1 2 1 2 1 . . . Weapon Slot 4 | 1 1 . 1 . . . 1 Core Integrity 6 | . . . . 6 . . . Heat Dissipation 1 | . . . . . 1 . . Inventory Capacity 2 | . 1 1 . . . . . Ranged Accuracy 4 | . . 2 . . . 2 . KI Resistance % 2 | . . . 2 . . . . Protomatter Created 1043 | . 133 104 779 27 . . . Integrity Restored 2789 | . 227 393 1773 234 . 162 . Core 2084 | . 181 276 1231 234 . 162 . Parts 705 | . 46 117 542 . . . . Protomatter Decayed 288 | . 56 . 165 67 . . . Game ------ Seed ForceImpactRegulator Manual? 0 Play Time 01:02:54 Cumulative 141.0 hours Start 2020.04.09 @ 13:45:27 End 2020.04.09 @ 14:53:21 Sessions 1 Manual Loads 0 Difficulty Rogue Special Mode Winter2019/RPGLIKE Game No. 53 Rogue 53 Adventurer 0 Explorer 0 Win Type - Total 1 Types 1/0/0/0/0/0/0 Lore% 57 Gallery% 68 Achievement% 62 Wizard Run 0 Options --------- ASCII 1 Keyboard 1 Movement Numpad Keybinds 0 Fullscreen 1 Font 16/SmallcapsGlow Map View 75x55 Tactical HUD 1 Map Filters NONE Filters NONE Steam 1 RUN: 0251c2eb-1b27-4611-b7f0-e745ca033bec